bitfinex/quotes_SOLUSD_20250930
["timestamp","ask_amount","ask_price","bid_price","bid_amount"]
[1759259530537,0.72,208.31,208.23,14.20991715]
[1759259530722,4.80076812,208.3,208.23,13.92559401]
[1759259530925,0.72,208.29,208.25,13.59559401]
[1759259531330,0.72,208.28,208.26,34.92]
[1759259531643,5.52076812,208.3,208.27,34.92]
[1759259531835,0.72,208.29,208.27,34.92]
[1759259532740,5.52119504,208.29,208.27,34.92]
[1759259532922,0.72,208.28,208.27,34.92]
[1759259533351,0.72,208.28,208.21,0.33]
[1759259533651,0.1,208.34,208.33,54.39559401]
[1759259533840,0.1,208.34,208.33,5.17071985]
[1759259534025,0.1,208.34,208.33,35.62]
[1759259534834,0.1,208.34,208.3,13.59559401]
[1759259535041,0.1,208.34,208.31,35.62]
[1759259536237,0.1,208.34,208.32,13.87991715]
[1759259536549,0.1,208.34,208.33,49.17559401]
[1759259536843,0.1,208.34,208.33,53.97567081]
[1759259537031,0.1,208.34,208.33,18.39567081]
[1759259537544,0.1,208.34,208.33,54.01567081]
[1759259539531,0.1,208.34,208.33,18.39567081]
[1759259539740,0.1,208.34,208.33,54.01567081]
[1759259540143,0.1,208.34,208.33,18.39567081]
[1759259540338,0.1,208.34,208.33,49.15559401]
[1759259540542,0.1,208.34,208.33,13.59559401]
[1759259540744,0.1,208.34,208.33,49.15559401]
[1759259541847,0.1,208.34,208.33,13.59559401]
[1759259542155,17.61953588,208.34,208.27,37.48]
[1759259542332,0.72,208.33,208.28,35.58]
[1759259542523,0.72,208.32,208.28,35.58]
[1759259542941,0.69,208.31,208.28,35.58]
[1759259543133,0.69,208.3,208.28,35.58]
[1759259543442,0.69,208.29,208.28,35.58]
[1759259553048,0.69,208.29,208.27,37.48]
[1759259553250,0.69,208.28,208.27,37.48]
[1759259553548,0.69,208.28,208.27,72.86]
[1759259554265,0.69,208.32,208.27,72.86]
[1759259554464,0.69,208.31,208.27,72.86]
[1759259554855,0.69,208.3,208.27,72.86]
[1759259555049,0.69,208.29,208.27,72.86]
[1759259555249,0.69,208.29,208.17,28.93211557]
[1759259555250,0.69,208.28,208.07,20.0]
[1759259555566,0.69,208.27,208.17,37.46]
[1759259555766,20.8,208.24,208.18,35.36]
[1759259555945,0.69,208.23,208.18,35.36]
[1759259556265,21.49,208.22,208.18,35.36]
[1759259556456,0.69,208.21,208.18,35.36]
[1759259556653,14.42689172,208.24,208.18,35.36]
[1759259556865,0.69,208.23,208.18,35.36]
[1759259557567,0.69,208.23,208.18,40.1634173]
[1759259557966,21.49,208.23,208.18,40.1634173]
[1759259558773,20.8,208.23,208.18,40.1634173]
[1759259558975,0.69,208.22,208.18,40.1634173]
[1759259559151,0.69,208.21,208.18,35.36]
[1759259559474,4.80272984,208.22,208.18,35.36]
[1759259559667,5.49272984,208.22,208.18,35.36]
[1759259562161,0.69,208.21,208.18,35.36]
[1759259562959,4.80272984,208.22,208.19,35.26]
[1759259563273,0.69,208.21,208.19,35.26]
[1759259563453,4.80272984,208.22,208.19,35.26]
[1759259563649,5.49272984,208.22,208.2,35.26]
[1759259565176,5.49284328,208.21,208.2,35.26]
[1759259565378,5.49284328,208.21,208.17,37.46]
[1759259565673,0.69,208.2,208.18,35.22]
[1759259565868,0.69,208.19,208.18,35.22]
[1759259567254,5.49330467,208.19,208.18,35.22]
[1759259568077,5.49330467,208.19,208.17,37.46]
[1759259568282,4.80330467,208.19,208.18,35.16]
[1759259568668,4.80330467,208.19,208.17,37.46]
[1759259568881,4.80330467,208.19,208.18,35.16]
[1759259569471,5.49330467,208.19,208.18,35.16]
[1759259571281,10.21919109,208.19,208.18,35.16]
[1759259571473,10.21919109,208.19,208.17,37.46]
[1759259571678,20.8,208.16,208.05,13.59559401]
[1759259571864,0.69,208.15,208.07,13.59559401]
[1759259572064,20.8,208.16,208.08,35.14]
[1759259572378,0.69,208.14,208.08,35.14]
[1759259572759,4.80468937,208.13,208.08,35.14]
[1759259573075,5.51468937,208.13,208.08,35.14]
[1759259575376,0.71,208.12,208.08,35.14]
[1759259576661,5.51502113,208.12,208.08,35.14]
[1759259576988,0.71,208.11,208.08,35.14]
[1759259578674,0.71,208.13,208.08,35.14]
[1759259578873,0.71,208.12,208.08,35.14]
[1759259580179,5.51506802,208.12,208.08,35.14]
[1759259580688,5.51506802,208.12,208.09,35.02]
[1759259581380,0.71,208.11,208.1,35.0]
[1759259581684,4.80506802,208.12,208.1,35.0]
[1759259581860,5.51506802,208.12,208.1,35.0]
[1759259589187,4.80422772,208.15,208.1,35.0]
[1759259589489,4.80261262,208.22,208.11,13.59559401]
[1759259589792,0.71,208.27,208.12,0.28432314]
[1759259589968,0.71,208.27,208.1,51.81880858]
[1759259589969,20.8,208.24,208.14,13.87991715]
[1759259590164,0.71,208.23,208.15,34.96]
[1759259590391,0.71,208.22,208.16,34.96]
[1759259591188,5.51273113,208.22,208.16,39.76387847]
[1759259592517,5.51273113,208.22,208.16,34.96]
[1759259593581,5.51273113,208.22,208.16,39.76390747]
[1759259594497,20.8,208.23,208.17,13.59559401]
[1759259595271,21.51,208.23,208.17,13.59559401]
[1759259595502,26.31252269,208.23,208.17,18.39924312]
[1759259596081,26.31252269,208.23,208.17,13.59559401]
[1759259596404,0.71,208.22,208.18,34.88]
[1759259596601,0.71,208.21,208.18,34.88]
[1759259597803,4.80280076,208.22,208.18,34.88]
[1759259597977,5.51280076,208.22,208.18,34.88]
[1759259599592,0.71,208.21,208.19,34.82]
[1759259599792,5.51299185,208.21,208.19,34.82]
[1759259600323,0.71,208.2,208.19,34.82]
[1759259601688,0.71,208.22,208.19,34.82]
[1759259602092,0.71,208.21,208.19,34.82]
[1759259603493,5.51292084,208.21,208.19,34.82]
[1759259605104,4.80238198,208.23,208.19,34.82]
[1759259605413,0.69,208.22,208.19,34.82]
[1759259605604,0.69,208.21,208.19,34.82]
[1759259608410,5.49285567,208.21,208.19,34.82]
[1759259608716,5.49285567,208.21,208.17,4.80368605]
[1759259608916,5.49285567,208.21,208.18,34.7]
[1759259609721,0.69,208.2,208.18,34.7]
[1759259609898,5.49285567,208.21,208.18,34.7]
[1759259610419,0.69,208.21,208.18,34.7]
[1759259611302,5.49286102,208.21,208.18,34.7]
[1759259614033,0.69,208.2,208.18,34.7]
[1759259615000,0.69,208.27,208.19,13.59559401]
[1759259615202,2.5854847,208.28,208.19,13.59559401]
[1759259615400,0.69,208.28,208.19,13.59559401]
[1759259615820,20.8,208.26,208.19,13.59559401]
[1759259616397,2.5854847,208.22,208.2,34.62]
[1759259616594,2.5854847,208.22,208.13,0.14216157]
[1759259616595,2.5854847,208.22,208.21,34.62]
[1759259616812,4.80238198,208.23,208.21,34.62]
[1759259617240,5.49238198,208.23,208.21,34.62]
[1759259618226,8.07786668,208.23,208.21,34.62]
[1759259618826,0.69,208.22,208.21,34.62]
[1759259619020,0.69,208.22,208.12,37.48]
[1759259619021,3.2754847,208.22,208.12,37.48]
[1759259619327,2.5854847,208.2,208.13,48.19559401]
[1759259619616,3.2754847,208.19,208.13,53.00006751]
[1759259620117,20.8,208.2,208.0,152.20172287]
[1759259620118,2.5854847,208.14,208.0,152.20172287]
[1759259620315,2.5854847,208.12,208.01,34.6]
[1759259620521,24.0754847,208.13,208.02,34.74]
[1759259620698,24.0754847,208.13,208.03,13.59559401]
[1759259620895,2.5854847,208.12,208.04,0.28432314]
[1759259621206,2.5854847,208.07,208.03,13.59559401]
[1759259621418,2.5854847,208.05,208.0,100.0]
[1759259621719,2.5854847,208.05,208.02,13.59559401]
[1759259622608,0.69,208.1,208.02,13.59559401]
[1759259622813,2.5854847,208.05,208.02,13.59559401]
[1759259623213,2.5854847,208.03,208.02,13.59559401]
[1759259625115,2.5854847,208.03,208.01,34.72]
[1759259625116,4.80723007,208.02,208.0,100.0]
[1759259625313,5.49723007,208.02,208.01,34.72]
[1759259625515,8.08271477,208.02,208.01,34.72]
[1759259629731,4.80723007,208.02,208.01,34.72]
[1759259629934,7.39271477,208.02,208.01,34.72]
[1759259631538,8.08271477,208.02,208.01,34.72]
[1759259632838,12.01692081,208.04,208.01,34.72]
[1759259632839,4.80693224,208.04,208.01,34.72]
[1759259633037,2.5854847,208.03,208.01,34.72]
[1759259633942,0.71,208.02,208.0,100.0]
[1759259634144,3.2954847,208.01,208.0,100.0]
[1759259634323,8.10294587,208.01,208.0,134.66]
[1759259636327,10.68843057,208.01,208.0,134.66]
[1759259636738,10.68843057,208.01,208.0,100.0]
[1759259636936,10.68843057,208.01,208.0,134.64]
[1759259637440,10.68843057,208.01,208.0,100.0]
[1759259637739,10.68843057,208.01,208.0,134.64]
[1759259637947,8.10294587,208.01,208.0,134.64]
[1759259640543,10.68843057,208.01,208.0,48.27601014]
[1759259640745,22.70708351,208.01,207.98,37.48]
[1759259640929,23.3854847,207.99,207.98,37.48]
[1759259641239,24.0954847,207.99,207.98,37.48]
[1759259642023,24.0954847,207.99,207.98,72.08]
[1759259642643,28.90340815,207.99,207.98,72.08]
[1759259643461,28.19340815,207.99,207.98,72.08]
[1759259643626,2.5854847,208.0,207.98,72.08]
[1759259643956,0.2898,207.99,207.98,72.08]
[1759259645628,0.2898,207.99,207.98,90.48374864]
[1759259645842,0.2898,207.99,207.98,90.76807178]
[1759259646050,0.71,208.12,208.0,0.28432314]
[1759259646358,2.5854847,208.14,208.03,0.28432314]
[1759259646651,8.10316099,208.19,208.05,13.87991715]
[1759259646828,0.71,208.19,208.07,13.87991715]
[1759259647029,5.51261262,208.22,208.09,13.87991715]
[1759259647350,2.5854847,208.21,208.13,13.59559401]
[1759259647549,2.5854847,208.21,208.15,13.59559401]
[1759259647734,2.5854847,208.21,208.16,34.68]
[1759259648064,3.2954847,208.21,208.16,34.68]
[1759259648226,8.09836047,208.21,208.16,34.68]
[1759259648927,2.5854847,208.19,208.16,34.68]
[1759259649125,2.5854847,208.17,208.08,0.28432314]
[1759259649432,2.5854847,208.16,208.1,13.59559401]
[1759259649629,7.38942993,208.17,208.12,13.59559401]
[1759259649933,8.09942993,208.17,208.13,34.68]
[1759259650138,28.18908083,208.18,208.13,34.68]
[1759259650543,28.89908083,208.18,208.13,34.68]
[1759259651647,0.71,208.17,208.13,34.68]
[1759259652651,4.8038307,208.17,208.13,34.68]
[1759259653327,5.5138307,208.17,208.13,34.68]
[1759259653529,4.8038307,208.17,208.13,34.68]
[1759259654959,5.5138307,208.17,208.13,34.68]
[1759259655454,5.51400281,208.16,208.12,13.59559401]
[1759259655753,4.80400281,208.16,208.13,34.62]
[1759259655951,4.80376416,208.18,208.14,34.6]
[1759259656154,25.60335287,208.19,208.15,13.59559401]
[1759259656857,20.8,208.19,208.15,13.59559401]
[1759259657040,25.60331958,208.19,208.15,13.59559401]
[1759259658256,0.71,208.24,208.15,13.59559401]
[1759259658461,3.2954847,208.24,208.15,13.59559401]
[1759259658642,20.8,208.22,208.15,13.59559401]
[1759259659158,20.8,208.22,208.15,18.39974294]
[1759259659354,8.09786668,208.23,208.15,18.39974294]
[1759259659748,26.31238198,208.23,208.15,18.39974294]
[1759259661570,27.96681749,208.23,208.15,18.39974294]
[1759259662147,4.80284328,208.21,208.15,18.39974294]
[1759259662549,5.51284328,208.21,208.17,13.59559401]
[1759259662746,0.71,208.2,208.17,13.59559401]
[1759259664365,0.68,208.19,208.13,4.80448354]
[1759259664555,0.68,208.19,208.15,13.59559401]
[1759259664761,0.68,208.18,208.15,13.59559401]
[1759259665664,7.17770571,208.2,208.15,13.59559401]
[1759259665867,0.72,208.19,208.15,13.59559401]
[1759259666044,0.72,208.18,208.15,13.59559401]
[1759259666447,7.17757969,208.2,208.15,13.59559401]
[1759259667270,6.45757969,208.2,208.15,13.59559401]
[1759259667449,0.72,208.19,208.15,13.59559401]
[1759259668373,5.52336986,208.19,208.15,13.59559401]
[1759259669957,0.72,208.18,208.15,13.59559401]
[1759259670361,0.72,208.17,208.15,13.59559401]
[1759259670852,7.17780537,208.19,208.15,13.59559401]
[1759259671170,0.72,208.18,208.15,13.59559401]
[1759259672748,4.80358411,208.18,208.16,34.48]
[1759259672954,4.80358411,208.18,208.16,48.07559401]
[1759259672955,0.72,208.17,208.16,48.07559401]
[1759259673169,4.80358411,208.18,208.16,48.07559401]
[1759259673474,0.72,208.17,208.16,48.07559401]
[1759259673967,4.80358411,208.18,208.16,48.07559401]
[1759259674270,2.37443551,208.17,208.13,37.48]
[1759259674457,4.80445853,208.14,208.13,37.48]
[1759259674655,7.17889404,208.14,208.13,37.48]
[1759259674858,7.17889404,208.14,208.13,71.96]
[1759259675370,5.52445853,208.14,208.13,71.96]
[1759259675572,7.17889404,208.14,208.13,71.96]
[1759259676174,7.17889404,208.14,208.13,37.48]
[1759259676474,7.17889404,208.14,208.13,71.96]
[1759259677673,7.17889404,208.14,208.13,37.48]
[1759259677974,7.17889404,208.14,208.13,71.96]
[1759259685961,7.17889404,208.14,208.07,13.49769824]
[1759259686182,1.65443551,208.11,208.07,13.49769824]
[1759259686778,0.72,208.19,208.08,0.28432314]
[1759259687280,1.65443551,208.16,208.09,34.48]
[1759259687861,1.65443551,208.15,208.09,34.48]
[1759259688071,1.65443551,208.15,208.11,13.59559401]
[1759259688284,1.65443551,208.15,208.12,34.48]
[1759259689475,1.65443551,208.14,208.12,34.48]
[1759259690671,1.65443551,208.14,208.13,34.48]
[1759259690885,1.65443551,208.14,208.1,13.59559401]
[1759259691186,1.65443551,208.14,208.11,34.48]
[1759259691395,1.65443551,208.14,208.12,34.48]
[1759259691690,1.65443551,208.14,208.13,34.48]
[1759259692086,1.65443551,208.14,208.1,18.40086992]
[1759259692295,1.65443551,208.14,208.11,34.48]
[1759259694586,1.65443551,208.14,208.1,18.40086992]
[1759259694787,1.65443551,208.14,208.11,34.46]
[1759259694989,4.80426584,208.15,208.11,34.46]
[1759259695189,1.65443551,208.14,208.11,34.46]
[1759259695578,1.65443551,208.14,208.12,34.46]
[1759259696092,5.50426584,208.15,208.12,34.46]
[1759259696296,1.65443551,208.14,208.12,34.46]
[1759259696498,6.45891709,208.14,208.12,34.46]
[1759259696670,6.45891709,208.14,208.13,34.46]
[1759259697090,7.15891709,208.14,208.13,34.46]
[1759259697892,1.65443551,208.14,208.13,34.46]
[1759259698396,7.15889404,208.14,208.13,34.46]
[1759259698586,6.45889404,208.14,208.13,34.46]
[1759259699292,0.7,208.16,208.13,34.46]
[1759259699490,2.35443551,208.15,208.13,34.46]
[1759259701196,0.7,208.21,208.14,13.59559401]
[1759259701402,4.80169019,208.26,208.14,13.59559401]
[1759259701403,4.80169019,208.26,208.16,13.59559401]
[1759259701589,4.80169019,208.26,208.18,13.59559401]
[1759259701590,1.65443551,208.24,208.18,13.59559401]
[1759259701783,0.7,208.25,208.18,13.59559401]
[1759259701973,1.65443551,208.24,208.18,13.59559401]
[1759259703185,1.65443551,208.24,208.2,13.59559401]
[1759259703486,1.65443551,208.24,208.14,0.28432314]
[1759259703487,1.65443551,208.22,208.14,0.28432314]
[1759259703677,1.65443551,208.16,208.09,4.80561295]
[1759259703877,1.65443551,208.15,208.11,13.59559401]
[1759259704103,1.65443551,208.15,208.1,34.46]
[1759259704402,1.65443551,208.16,208.11,13.59559401]
[1759259704602,1.65443551,208.17,208.11,13.59559401]
[1759259704777,1.65443551,208.16,208.11,13.59559401]
[1759259705188,1.65443551,208.16,208.13,13.59559401]
[1759259705399,1.65443551,208.16,208.14,34.46]
[1759259705608,4.80377686,208.17,208.14,34.46]
[1759259705908,1.65443551,208.16,208.14,34.46]
[1759259706599,1.65443551,208.15,208.14,34.46]
[1759259706806,2.35443551,208.15,208.14,34.46]
[1759259707192,1.65443551,208.15,208.11,18.4006972]
[1759259707387,1.65443551,208.13,208.12,34.46]
[1759259707620,1.65443551,208.13,208.12,48.05559401]
[1759259707805,1.65443551,208.14,208.12,48.05559401]
[1759259708499,2.35443551,208.13,208.08,42.28574601]
[1759259708706,4.8046348,208.14,208.08,42.28574601]
[1759259708707,2.35443551,208.12,208.09,48.05559401]
[1759259708908,25.60422388,208.16,208.08,42.28573373]
[1759259709084,20.8,208.16,208.1,34.46]
[1759259709290,24.01075681,208.24,208.11,13.59559401]
[1759259709291,0.7,208.19,208.11,13.59559401]
[1759259709484,2.35443551,208.19,208.11,13.59559401]
[1759259709710,1.65443551,208.22,208.12,0.28432314]
[1759259709902,2.35443551,208.24,208.14,13.87991715]
[1759259710098,23.15443551,208.24,208.14,13.87991715]
[1759259710601,2.35443551,208.24,208.14,13.87991715]
[1759259710806,7.15660651,208.24,208.15,16.81479702]
[1759259711103,1.65443551,208.23,208.17,13.59559401]
[1759259711486,2.35443551,208.24,208.17,13.59559401]
[1759259711691,1.65443551,208.25,208.18,0.28432314]
[1759259711888,1.65443551,208.25,208.2,13.59559401]
[1759259712082,2.35443551,208.25,208.2,13.59559401]
[1759259712288,1.65443551,208.23,208.2,13.59559401]
[1759259713103,7.15682679,208.23,208.2,13.59559401]
[1759259713497,2.35443551,208.23,208.2,13.59559401]
[1759259714086,1.65443551,208.23,208.2,13.59559401]
[1759259715191,1.65443551,208.23,208.2,18.39866571]
[1759259715591,1.65443551,208.23,208.2,13.59559401]
[1759259715794,4.80159483,208.27,208.21,0.5]
[1759259715991,1.65443551,208.26,208.22,34.44]
[1759259716312,1.65443551,208.25,208.22,34.44]
[1759259716682,0.7,208.26,208.22,34.44]
[1759259716683,4.80159483,208.27,208.22,34.44]
[1759259716886,1.65443551,208.24,208.22,34.44]
[1759259717603,5.50186891,208.26,208.22,34.44]
[1759259717808,4.80147572,208.27,208.22,34.44]
[1759259718022,2.32443551,208.26,208.22,34.44]
[1759259718223,1.65443551,208.25,208.22,34.44]
[1759259718932,1.65443551,208.24,208.22,34.44]
[1759259719100,0.67,208.25,208.22,34.44]
[1759259719300,0.67,208.24,208.22,34.44]
[1759259719507,2.32443551,208.24,208.22,34.44]
[1759259720019,2.32443551,208.23,208.22,34.44]
[1759259720211,0.67,208.23,208.22,34.44]
[1759259720418,3.25494826,208.23,208.22,34.44]
[1759259721018,3.25494826,208.23,208.15,4.80422772]
[1759259721019,4.80261262,208.22,208.15,4.80422772]
[1759259721221,2.58494826,208.2,208.16,48.03559401]
[1759259721438,2.58494826,208.19,208.16,48.03559401]
[1759259721899,2.58494826,208.19,208.16,48.53559401]
[1759259722306,2.58494826,208.19,208.16,48.03559401]
[1759259722683,2.58494826,208.19,208.15,4.80422772]
[1759259722684,0.67,208.19,208.17,34.44]
[1759259722931,2.58494826,208.18,208.17,34.44]
[1759259723302,3.26494826,208.18,208.17,34.44]
[1759259723635,24.06494826,208.18,208.17,34.44]
[1759259724317,40.87732216,208.18,208.08,37.48]
[1759259724504,2.58494826,208.11,208.09,48.03559401]
[1759259725420,2.58494826,208.1,208.09,34.44]
[1759259726126,3.26494826,208.1,208.09,34.44]
[1759259726328,8.07033028,208.1,208.09,34.44]
[1759259726538,8.07033028,208.1,208.08,37.48]
[1759259726738,3.26494826,208.09,208.08,37.48]
[1759259726932,3.26494826,208.09,208.08,71.92]
[1759259727322,12.01097136,208.15,208.08,71.92]
[1759259727528,2.58494826,208.1,208.08,71.92]
[1759259728441,2.58494826,208.11,208.08,71.92]
[1759259728740,0.68,208.13,208.08,76.7257614]
[1759259728939,20.8,208.13,208.09,14.09559401]
[1759259729118,20.8,208.13,208.1,34.44]
[1759259729442,2.58494826,208.14,208.1,34.94]
[1759259729944,23.38494826,208.14,208.1,34.94]
[1759259730329,2.58494826,208.11,208.08,37.48]
[1759259730639,2.58494826,208.12,208.08,37.48]
[1759259730640,2.58494826,208.12,208.09,34.94]
[1759259730843,2.58494826,208.14,208.09,34.94]
[1759259731029,2.58494826,208.14,208.1,0.5]
[1759259731340,2.58494826,208.14,208.11,34.44]
[1759259731837,2.58494826,208.12,208.11,34.44]
[1759259732031,3.26494826,208.12,208.11,34.44]
[1759259732543,2.58494826,208.12,208.11,34.44]
[1759259734332,20.08216908,208.12,208.08,37.48]
[1759259734553,2.58494826,208.09,208.08,37.48]
[1759259734723,3.26494826,208.09,208.08,71.92]
[1759259735034,24.06494826,208.09,208.08,71.92]
[1759259735630,3.26494826,208.09,208.08,71.92]
[1759259736447,3.26494826,208.09,207.97,0.2]
[1759259736448,20.8,208.05,207.97,0.2]
[1759259736647,2.58494826,207.98,207.97,0.2]
[1759259737037,2.58494826,207.99,207.97,5.5083857]
[1759259737345,0.68,208.03,207.97,5.5083857]
[1759259737524,2.58494826,207.99,207.98,34.44]
[1759259738730,3.26494826,207.99,207.97,0.2]
[1759259738947,2.58494826,207.98,207.97,0.2]
[1759259739144,3.26494826,207.98,207.97,34.64]
[1759259739345,0.68,208.02,207.97,34.64]
[1759259739652,2.58494826,208.0,207.97,34.64]
[1759259740443,2.58494826,207.99,207.97,34.64]
[1759259740641,3.26494826,207.98,207.97,34.64]
[1759259740953,2.58494826,207.98,207.97,34.64]
[1759259742537,3.26494826,207.98,207.97,34.64]
[1759259742754,8.07310289,207.98,207.97,34.64]
[1759259742952,3.26494826,207.98,207.97,34.64]
[1759259743453,2.58494826,207.98,207.97,34.64]
[1759259743856,2.59147876,207.98,207.97,34.64]
[1759259745355,3.27147876,207.98,207.97,34.64]
[1759259745559,2.59147876,207.98,207.97,34.64]
[1759259746956,3.27147876,207.98,207.97,34.64]
[1759259747154,8.07963339,207.98,207.97,34.64]
[1759259751150,7.39963339,207.98,207.97,34.64]
[1759259751365,8.07963339,207.98,207.97,34.64]
[1759259752077,20.8,207.98,207.97,34.64]
[1759259752243,20.8,208.0,207.97,34.64]
[1759259752244,2.59147876,208.0,207.97,34.64]
[1759259752443,20.8,207.99,207.97,34.64]
[1759259752685,20.8,207.99,207.97,35.14]
[1759259752866,5.48703575,208.03,207.97,39.94823079]
[1759259753162,20.8,208.0,207.97,39.94823079]
[1759259753467,2.59147876,208.01,207.97,39.94823079]
[1759259753468,2.59147876,208.03,207.98,0.5]
[1759259753642,23.39147876,208.03,207.99,0.5]
[1759259753839,23.39147876,208.03,208.0,34.46]
[1759259753840,2.59147876,208.02,208.0,34.46]
[1759259754062,20.8,208.03,208.0,34.46]
[1759259754268,2.59147876,208.02,208.0,34.46]
[1759259755563,4.8068551,208.04,208.0,34.46]
[1759259755758,2.59147876,208.02,208.0,34.46]
[1759259756159,23.39147876,208.03,208.0,34.46]
[1759259756654,2.59147876,208.03,208.0,39.26768056]
[1759259756860,4.80657337,208.05,208.0,39.26768056]
[1759259756861,2.59147876,208.05,208.01,0.5]
[1759259757063,0.69,208.12,208.04,13.59559401]
[1759259757366,12.70100114,208.15,208.06,13.59559401]
[1759259757561,2.59147876,208.12,208.07,34.94]
[1759259757762,2.59147876,208.08,208.07,34.44]
[1759259761559,2.59147876,208.09,208.07,34.44]
[1759259762776,2.59147876,208.08,208.07,34.44]
[1759259762978,3.28147876,208.08,208.07,34.44]
[1759259763675,8.08732266,208.08,208.07,34.44]
[1759259766072,28.88732266,208.08,208.07,34.44]
[1759259766252,8.08732266,208.08,208.07,34.44]
[1759259766450,28.88732266,208.08,208.07,34.44]
[1759259766652,8.08732266,208.08,208.07,34.44]
[1759259767578,28.19732266,208.08,208.07,34.44]
[1759259767959,28.88732266,208.08,208.02,4.80720583]
[1759259768260,2.59147876,208.03,208.0,13.59559401]
[1759259768459,2.59147876,208.03,208.01,34.44]
[1759259768661,2.59147876,208.04,208.01,34.44]
[1759259769057,2.59147876,208.04,208.01,34.94]
[1759259769664,0.69,208.07,208.01,39.74729694]
[1759259769960,2.59147876,208.06,208.02,14.09559401]
[1759259770162,12.01334699,208.11,208.04,16.18707277]
[1759259770163,20.8,208.11,208.04,16.18707277]
[1759259770372,2.59147876,208.11,208.06,13.59559401]
[1759259770571,2.59147876,208.11,208.07,34.94]
[1759259770769,20.8,208.1,208.08,0.5]
[1759259771073,4.80422772,208.15,208.08,0.5]
[1759259771266,2.59147876,208.12,208.08,0.5]
[1759259771587,2.59147876,208.13,208.08,0.5]
[1759259771762,2.59147876,208.14,208.09,4.80561295]
[1759259771963,2.58726638,208.14,208.1,0.5]
[1759259772172,2.58726638,208.14,208.11,34.44]
[1759259772567,2.58726638,208.13,208.11,34.44]
[1759259772772,2.58726638,208.12,208.11,34.44]
[1759259772979,3.27726638,208.12,208.11,34.44]
[1759259775078,7.39218661,208.12,208.11,34.44]
[1759259775279,2.58726638,208.12,208.11,34.44]
[1759259776066,8.08218661,208.12,208.11,34.44]
[1759259776776,8.08218661,208.12,208.06,18.40187524]
[1759259776777,8.08218661,208.12,208.04,4.80674564]
[1759259776975,8.08218661,208.12,208.05,48.01559401]
[1759259777179,2.58726638,208.08,208.05,48.01559401]
[1759259777485,2.58726638,208.06,208.05,34.42]
[1759259777691,3.27726638,208.06,207.98,4.80799153]
[1759259777881,2.58726638,208.02,207.99,48.51559401]
[1759259778184,2.58726638,208.01,207.99,48.01559401]
[1759259778691,0.69,208.06,207.99,48.01559401]
[1759259778692,2.58726638,208.02,207.99,52.82329347]
[1759259778864,2.58726638,208.02,207.99,53.32329347]
[1759259779265,2.58726638,208.02,207.99,52.82329347]
[1759259779480,2.58726638,208.02,207.99,48.51559401]
[1759259779781,2.58726638,208.02,207.99,53.32350174]
[1759259781463,2.58726638,208.04,208.0,0.5]
[1759259781785,2.58726638,208.04,208.01,0.5]
[1759259781983,4.8058439,208.08,207.99,64.84331038]
[1759259781984,2.58726638,208.05,208.02,34.92]
[1759259782284,1.65727692,208.05,208.02,34.42]
[1759259782723,1.65727692,208.03,207.99,13.59559401]
[1759259782992,1.65727692,208.02,208.0,34.42]
[1759259783364,1.65727692,208.03,208.0,34.42]
[1759259783666,1.65727692,208.03,208.0,34.92]
[1759259784287,1.65727692,208.04,208.0,34.92]
[1759259784682,1.65727692,208.04,208.01,13.59559401]
[1759259785291,0.68,208.04,208.0,34.42]
[1759259785467,1.65727692,208.02,208.0,34.42]
[1759259785973,1.65727692,208.01,208.0,34.42]
[1759259786188,2.33727692,208.01,208.0,34.42]
[1759259787014,13.77384577,208.01,208.0,34.42]
[1759259787379,7.14473809,208.01,208.0,34.42]
[1759259787699,13.77384577,208.01,208.0,34.42]